Workbook

Sheet CALC (hidden)
A1: Emision | B1: JN21 | E1: Fecha Fin | F1: Dxv | G1: Plazo Cupon | H1: Flujo Cupón | I1: Amort | J1: VP | P1: Fecha Fin Fung | Q1: Fecha Fin No Fung
A2: Contrato | B2: DC16 | E2: =IF($B$1="MR26",Q2,P2) -> 2013-12-19 | F2: =IF(OR(E2-$B$3<=0,E2>$B$4),"",E2-$B$3) ->  | P2: 2013-12-19 | Q2: 2016-09-15
A3: Fecha Valuación | B3: =DIA_VALUACION -> 2016-11-09 | D3: =IF(F3=MIN($F:$F),"VIG","") ->  | E3: =IF($B$1="MR26",Q3,P3) -> 2014-06-19 | G3: =IF(E3-E2<0,0,E3-E2) -> 182 | H3: =IF(F3<=0,0,$B$6/36000*G3*100) -> 3.286111111 | I3: =IF(F3=MAX($F:$F),100,0) -> 0 | J3: =IF(F3="",0,(H3+I3)/(1+$B$7*182/36000)^(F3/182)) -> 0 | L3: =IF(F3="","",IF(F3=MIN($F:$F),1,L2+1)) ->  | M3: =IFERROR(H3/(1+$B$11*F3/36000)+SUM($M$2:$M2),0) -> 0 | P3: 2014-06-19 | Q3: 2017-03-16
A4: Vencimiento | B4: =VLOOKUP($B$1,CTOS_CASH,2,0) -> 2021-06-10 | D4: =IF(F4=MIN($F:$F),"VIG","") ->  | E4: 2014-12-18 | G4: =IF(E4-E3<0,0,E4-E3) -> 182 | H4: 3.286111111 | I4: =IF(F4=MAX($F:$F),100,0) -> 0 | J4: 0 | K4: =IFERROR(H4/(1+$B$11*F4/36000),"") ->  | M4: =IFERROR(H4/(1+$B$11*F4/36000)+SUM($M$2:$M3),0) -> 0 | P4: 2014-12-18 | Q4: 2017-09-14
A5: Venc. Futuro | B5: =VLOOKUP($B$2,CTOS_FUT,2,0) -> 2016-12-30 | E5: 2015-06-18 | G5: 182 | H5: 3.286111111 | I5: 0 | J5: 0 | M5: =IFERROR(H5/(1+$B$11*F5/36000)+SUM($M$2:$M4),0) -> 0 | P5: 2015-06-18 | Q5: 2018-03-15
A6: Tasa Cupón | B6: =VLOOKUP($B$1,CTOS_CASH,3,0) -> 6.5 | E6: 2015-12-17 | G6: 182 | H6: 3.286111111 | I6: 0 | J6: 0 | K6: =IFERROR(H6/(1+$B$11*F6/36000),"") ->  | M6: =IFERROR(H6/(1+$B$11*F6/36000)+SUM($M$2:$M5),0) -> 0 | P6: 2015-12-17 | Q6: 2018-09-13
A7: Tasa Yield | B7: 5 | E7: 2016-06-16 | G7: 182 | H7: 3.286111111 | I7: 0 | J7: 0 | M7: =IFERROR(H7/(1+$B$11*F7/36000)+SUM($M$2:$M6),0) -> 0 | P7: 2016-06-16 | Q7: 2019-03-14
A8: Precio Sucio | B8: =SUM($J:$J) -> 108.7842846 | D8: VIG | E8: 2016-12-15 | F8: 36 | G8: 182 | H8: 3.286111111 | I8: 0 | J8: 3.269924781 | K8: 3.269748508 | L8: 1 | M8: =IFERROR(H8/(1+$B$11*F8/36000)+SUM($M$2:$M7),0) -> 3.269748508 | P8: 2016-12-15 | Q8: 2019-09-12
A9: Precio Limpio | B9: =+B8-B10 -> 106.1481735 | E9: 2017-06-15 | F9: 218 | G9: 182 | H9: 3.286111111 | I9: 0 | J9: 3.189306207 | K9: 3.189459494 | L9: 2 | M9: =IFERROR(H9/(1+$B$11*F9/36000)+SUM($M$2:$M8),0) -> 6.459208002 | P9: 2017-06-15 | Q9: 2020-03-12
A10: Intereses | B10: =100*$B$6/36000*(VLOOKUP("VIG",$D:$G,4,0)-VLOOKUP("VIG",$D:$G,3,0)) -> 2.636111111 | E10: 2017-12-14 | F10: 400 | G10: 182 | H10: 3.286111111 | I10: 0 | J10: 3.110675249 | K10: 3.113018989 | L10: 3 | M10: =IFERROR(H10/(1+$B$11*F10/36000)+SUM($M$2:$M9),0) -> 12.8419755 | P10: 2017-12-14 | Q10: 2020-09-10
A11: Fondeo | B11: =VLOOKUP($B$2,TABLA_FONDEO,3,0) -> 5.004239 | E11: 2018-06-14 | F11: 582 | G11: 182 | H11: 3.286111111 | I11: 0 | J11: 3.033982904 | K11: 3.040156763 | L11: 4 | M11: =IFERROR(H11/(1+$B$11*F11/36000)+SUM($M$2:$M10),0) -> 25.61108877 | P11: 2018-06-14 | Q11: 2021-03-11
A12: Cupones | B12: =VLOOKUP($B$2,CTOS_FUT,3,0) -> 1 | E12: 2018-12-13 | F12: 764 | G12: 182 | H12: 3.286111111 | I12: 0 | J12: 2.959181375 | K12: 2.970627306 | L12: 5 | M12: =IFERROR(H12/(1+$B$11*F12/36000)+SUM($M$2:$M11),0) -> 51.15264808 | P12: 2018-12-13 | Q12: 2021-09-09
A13: VP Cupón | B13: =IFERROR(VLOOKUP($B$12,$L:$M,2,0),0) -> 3.269748508 | E13: 2019-06-13 | F13: 946 | G13: 182 | H13: 3.286111111 | I13: 0 | J13: 2.886224045 | K13: 2.904207067 | L13: 6 | M13: =IFERROR(H13/(1+$B$11*F13/36000)+SUM($M$2:$M12),0) -> 102.2388759 | P13: 2019-06-13 | Q13: 2022-03-10
A14: DXV FUT | B14: =+B5-B3 -> 51 | E14: 2019-12-11 | F14: 1127 | G14: 181 | H14: 3.268055556 | I14: 0 | J14: 2.79998208 | K14: 2.825423369 | L14: 7 | M14: =IFERROR(H14/(1+$B$11*F14/36000)+SUM($M$2:$M13),0) -> 204.3989682 | P14: 2019-12-11 | Q14: 2022-09-08
A15: Acarreo | B15: =(B8-B13)*(1+B11*B14/36000) -> 106.2625643 | E15: 2020-06-11 | F15: 1310 | G15: 183 | H15: 3.304166667 | I15: 0 | J15: 2.760747282 | K15: 2.795169875 | L15: 8 | M15: =IFERROR(H15/(1+$B$11*F15/36000)+SUM($M$2:$M14),0) -> 408.7676828 | P15: 2020-06-11 | Q15: 2023-03-09
A16: Tasa Yield | B16: =CALCF!B4 -> 5.009943339 | E16: 2020-12-10 | F16: 1492 | G16: 182 | H16: 3.286111111 | I16: 0 | J16: 2.677968148 | K16: 2.721647186 | L16: 9 | M16: =IFERROR(H16/(1+$B$11*F16/36000)+SUM($M$2:$M15),0) -> 817.461843 | P16: 2020-12-10 | Q16: 2023-09-07
E17: 2021-06-10 | F17: 1674 | G17: 182 | H17: 3.286111111 | I17: 100 | J17: 82.0962925 | K17: 2.665789572 | L17: 10 | M17: =IFERROR(H17/(1+$B$11*F17/36000)+SUM($M$2:$M16),0) -> 1634.867828 | P17: 2021-06-10 | Q17: 2024-03-07
E18: 2021-12-09 | G18: 182 | H18: 3.286111111 | I18: 0 | J18: 0 | M18: =IFERROR(H18/(1+$B$11*F18/36000)+SUM($M$2:$M17),0) -> 0 | P18: 2021-12-09 | Q18: 2024-09-05
E19: 2022-06-09 | G19: 182 | H19: 3.286111111 | I19: 0 | J19: 0 | M19: =IFERROR(H19/(1+$B$11*F19/36000)+SUM($M$2:$M18),0) -> 0 | P19: 2022-06-09 | Q19: 2025-03-06
E20: 2022-12-08 | G20: 182 | H20: 3.286111111 | I20: 0 | J20: 0 | M20: =IFERROR(H20/(1+$B$11*F20/36000)+SUM($M$2:$M19),0) -> 0 | P20: 2022-12-08 | Q20: 2025-09-04
E21: 2023-06-08 | G21: 182 | H21: 3.286111111 | I21: 0 | J21: 0 | M21: =IFERROR(H21/(1+$B$11*F21/36000)+SUM($M$2:$M20),0) -> 0 | P21: 2023-06-08 | Q21: 2026-03-05
E22: 2023-12-07 | G22: 182 | H22: 3.286111111 | I22: 0 | J22: 0 | M22: =IFERROR(H22/(1+$B$11*F22/36000)+SUM($M$2:$M21),0) -> 0 | P22: 2023-12-07
E23: 2024-06-06 | G23: 182 | H23: 3.286111111 | I23: 0 | J23: 0 | M23: =IFERROR(H23/(1+$B$11*F23/36000)+SUM($M$2:$M22),0) -> 0 | P23: 2024-06-06
E24: 2024-12-05 | G24: 182 | H24: 3.286111111 | I24: 0 | J24: 0 | M24: =IFERROR(H24/(1+$B$11*F24/36000)+SUM($M$2:$M23),0) -> 0 | P24: 2024-12-05
E25: 2025-06-05 | G25: 182 | H25: 3.286111111 | I25: 0 | J25: 0 | M25: =IFERROR(H25/(1+$B$11*F25/36000)+SUM($M$2:$M24),0) -> 0 | P25: 2025-06-05
E26: 2025-12-04 | G26: 182 | H26: 3.286111111 | I26: 0 | J26: 0 | M26: =IFERROR(H26/(1+$B$11*F26/36000)+SUM($M$2:$M25),0) -> 0 | P26: 2025-12-04
E27: 2026-06-04 | G27: 182 | H27: 3.286111111 | I27: 0 | J27: 0 | M27: =IFERROR(H27/(1+$B$11*F27/36000)+SUM($M$2:$M26),0) -> 0 | P27: 2026-06-04
E28: 2026-12-03 | G28: 182 | H28: 3.286111111 | I28: 0 | J28: 0 | M28: =IFERROR(H28/(1+$B$11*F28/36000)+SUM($M$2:$M27),0) -> 0 | P28: 2026-12-03
E29: 2027-06-03 | G29: 182 | H29: 3.286111111 | I29: 0 | J29: 0 | M29: =IFERROR(H29/(1+$B$11*F29/36000)+SUM($M$2:$M28),0) -> 0 | P29: 2027-06-03
E30: 2027-12-02 | G30: 182 | H30: 3.286111111 | I30: 0 | J30: 0 | M30: =IFERROR(H30/(1+$B$11*F30/36000)+SUM($M$2:$M29),0) -> 0 | P30: 2027-12-02
E31: 2028-06-01 | G31: 182 | H31: 3.286111111 | I31: 0 | J31: 0 | M31: =IFERROR(H31/(1+$B$11*F31/36000)+SUM($M$2:$M30),0) -> 0 | P31: 2028-06-01
E32: 2028-11-30 | G32: 182 | H32: 3.286111111 | I32: 0 | J32: 0 | M32: =IFERROR(H32/(1+$B$11*F32/36000)+SUM($M$2:$M31),0) -> 0 | P32: 2028-11-30
E33: 2029-05-31 | G33: 182 | H33: 3.286111111 | I33: 0 | J33: 0 | M33: =IFERROR(H33/(1+$B$11*F33/36000)+SUM($M$2:$M32),0) -> 0 | P33: 2029-05-31
E34: 2029-11-29 | F34: =IF(OR(E34-$B$3<=0,E34>$B$4),"",E34-$B$3) ->  | G34: 182 | H34: 3.286111111 | I34: 0 | J34: 0 | M34: =IFERROR(H34/(1+$B$11*F34/36000)+SUM($M$2:$M33),0) -> 0 | P34: 2029-11-29
E35: 2030-05-30 | G35: 182 | H35: =IF(F35<=0,0,$B$6/36000*G35*100) -> 3.286111111 | I35: 0 | J35: =IF(F35="",0,(H35+I35)/(1+$B$7*182/36000)^(F35/182)) -> 0 | L35: =IF(F35="","",IF(F35=MIN($F:$F),1,L34+1)) ->  | M35: =IFERROR(H35/(1+$B$11*F35/36000)+SUM($M$2:$M34),0) -> 0 | P35: 2030-05-30
E36: 2030-11-28 | G36: 182 | H36: 3.286111111 | I36: 0 | J36: 0 | K36: =IFERROR(H36/(1+$B$11*F36/36000),"") ->  | M36: =IFERROR(H36/(1+$B$11*F36/36000)+SUM($M$2:$M35),0) -> 0 | P36: 2030-11-28
E37: 2031-05-29 | G37: 182 | H37: 3.286111111 | I37: 0 | J37: 0 | M37: =IFERROR(H37/(1+$B$11*F37/36000)+SUM($M$2:$M36),0) -> 0 | P37: 2031-05-29
E38: 2031-11-27 | G38: 182 | H38: 3.286111111 | I38: 0 | J38: 0 | M38: =IFERROR(H38/(1+$B$11*F38/36000)+SUM($M$2:$M37),0) -> 0 | P38: 2031-11-27
E39: 2032-05-27 | G39: 182 | H39: 3.286111111 | I39: 0 | J39: 0 | M39: =IFERROR(H39/(1+$B$11*F39/36000)+SUM($M$2:$M38),0) -> 0 | P39: 2032-05-27
E40: 2032-11-25 | G40: 182 | H40: 3.286111111 | I40: 0 | J40: 0 | M40: =IFERROR(H40/(1+$B$11*F40/36000)+SUM($M$2:$M39),0) -> 0 | P40: 2032-11-25
E41: 2033-05-26 | G41: 182 | H41: 3.286111111 | I41: 0 | J41: 0 | M41: =IFERROR(H41/(1+$B$11*F41/36000)+SUM($M$2:$M40),0) -> 0 | P41: 2033-05-26
E42: 2033-11-24 | G42: 182 | H42: 3.286111111 | I42: 0 | J42: 0 | M42: =IFERROR(H42/(1+$B$11*F42/36000)+SUM($M$2:$M41),0) -> 0 | P42: 2033-11-24
E43: 2034-05-25 | G43: 182 | H43: 3.286111111 | I43: 0 | J43: 0 | M43: =IFERROR(H43/(1+$B$11*F43/36000)+SUM($M$2:$M42),0) -> 0 | P43: 2034-05-25
E44: 2034-11-23 | G44: 182 | H44: 3.286111111 | I44: 0 | J44: 0 | M44: =IFERROR(H44/(1+$B$11*F44/36000)+SUM($M$2:$M43),0) -> 0 | P44: 2034-11-23
E45: 2035-05-24 | G45: 182 | H45: 3.286111111 | I45: 0 | J45: 0 | M45: =IFERROR(H45/(1+$B$11*F45/36000)+SUM($M$2:$M44),0) -> 0 | P45: 2035-05-24
E46: 2035-11-22 | G46: 182 | H46: 3.286111111 | I46: 0 | J46: 0 | M46: =IFERROR(H46/(1+$B$11*F46/36000)+SUM($M$2:$M45),0) -> 0 | P46: 2035-11-22
E47: 2036-05-22 | G47: 182 | H47: 3.286111111 | I47: 0 | J47: 0 | M47: =IFERROR(H47/(1+$B$11*F47/36000)+SUM($M$2:$M46),0) -> 0 | P47: 2036-05-22
E48: 2036-11-20 | G48: 182 | H48: 3.286111111 | I48: 0 | J48: 0 | M48: =IFERROR(H48/(1+$B$11*F48/36000)+SUM($M$2:$M47),0) -> 0 | P48: 2036-11-20
E49: 2037-05-21 | G49: 182 | H49: 3.286111111 | I49: 0 | J49: 0 | M49: =IFERROR(H49/(1+$B$11*F49/36000)+SUM($M$2:$M48),0) -> 0 | P49: 2037-05-21
E50: 2037-11-19 | G50: 182 | H50: 3.286111111 | I50: 0 | J50: 0 | M50: =IFERROR(H50/(1+$B$11*F50/36000)+SUM($M$2:$M49),0) -> 0 | P50: 2037-11-19
E51: 2038-05-20 | G51: 182 | H51: 3.286111111 | I51: 0 | J51: 0 | M51: =IFERROR(H51/(1+$B$11*F51/36000)+SUM($M$2:$M50),0) -> 0 | P51: 2038-05-20
E52: 2038-11-18 | G52: 182 | H52: 3.286111111 | I52: 0 | J52: 0 | M52: =IFERROR(H52/(1+$B$11*F52/36000)+SUM($M$2:$M51),0) -> 0 | P52: 2038-11-18
E53: 2039-05-19 | G53: 182 | H53: 3.286111111 | I53: 0 | J53: 0 | M53: =IFERROR(H53/(1+$B$11*F53/36000)+SUM($M$2:$M52),0) -> 0 | P53: 2039-05-19
E54: 2039-11-17 | G54: 182 | H54: 3.286111111 | I54: 0 | J54: 0 | M54: =IFERROR(H54/(1+$B$11*F54/36000)+SUM($M$2:$M53),0) -> 0 | P54: 2039-11-17
E55: 2040-05-17 | G55: 182 | H55: 3.286111111 | I55: 0 | J55: 0 | M55: =IFERROR(H55/(1+$B$11*F55/36000)+SUM($M$2:$M54),0) -> 0 | P55: 2040-05-17
E56: 2040-11-15 | G56: 182 | H56: 3.286111111 | I56: 0 | J56: 0 | M56: =IFERROR(H56/(1+$B$11*F56/36000)+SUM($M$2:$M55),0) -> 0 | P56: 2040-11-15
E57: 2041-05-16 | G57: 182 | H57: 3.286111111 | I57: 0 | J57: 0 | M57: =IFERROR(H57/(1+$B$11*F57/36000)+SUM($M$2:$M56),0) -> 0 | P57: 2041-05-16
E58: 2041-11-14 | G58: 182 | H58: 3.286111111 | I58: 0 | J58: 0 | M58: =IFERROR(H58/(1+$B$11*F58/36000)+SUM($M$2:$M57),0) -> 0 | P58: 2041-11-14
E59: 2042-05-15 | G59: 182 | H59: 3.286111111 | I59: 0 | J59: 0 | M59: =IFERROR(H59/(1+$B$11*F59/36000)+SUM($M$2:$M58),0) -> 0 | P59: 2042-05-15
E60: 2042-11-13 | G60: 182 | H60: 3.286111111 | I60: 0 | J60: 0 | M60: =IFERROR(H60/(1+$B$11*F60/36000)+SUM($M$2:$M59),0) -> 0 | P60: 2042-11-13

Sheet CALCF (hidden)
A1: Fecha Valuación | B1: =+CALC!B5 -> 2016-12-30 | E1: Fecha Fin | F1: Dxv | G1: Plazo Cupon | P1: Fecha Fin Fung | Q1: Fecha Fin No Fung
A2: Vencimiento | B2: =+CALC!B4 -> 2021-06-10 | E2: =IF(CALC!$B$1="MR26",Q2,P2) -> 2013-12-19 | F2: =IF(OR(E2-$B$1<=0,E2>$B$2),"",E2-$B$1) ->  | P2: 2013-12-19 | Q2: 2016-09-15
A3: Tasa Cupón | B3: =+CALC!B6 -> 6.5 | D3: =IF(F3=MIN($F:$F),"VIG","") ->  | E3: =IF(CALC!$B$1="MR26",Q3,P3) -> 2014-06-19 | G3: =IF(E3-E2<0,0,E3-E2) -> 182 | P3: 2014-06-19 | Q3: 2017-03-16
A4: Tasa Yield | B4: 5.009943339 | E4: =IF(CALC!$B$1="MR26",Q4,P4) -> 2014-12-18 | G4: =IF(E4-E3<0,0,E4-E3) -> 182 | H4: =IF(F4<=0,0,IF(F4=MAX($F:$F),$B$3/36000*G4*100+100,$B$3/36000*G4*100)) -> 3.286111111 | I4: =IF(F4="",0,H4/(1+$B$4*182/36000)^(F4/182)) -> 0 | P4: 2014-12-18 | Q4: 2017-09-14
A5: Precio Sucio | B5: =SUM(I:I) -> 106.2139574 | E5: =IF(CALC!$B$1="MR26",Q5,P5) -> 2015-06-18 | G5: 182 | H5: 3.286111111 | I5: 0 | P5: 2015-06-18 | Q5: 2018-03-15
B6: =+B5-CALC!B15 -> -0.04860693949 | E6: =IF(CALC!$B$1="MR26",Q6,P6) -> 2015-12-17 | G6: 182 | H6: 3.286111111 | I6: 0 | P6: 2015-12-17 | Q6: 2018-09-13
E7: =IF(CALC!$B$1="MR26",Q7,P7) -> 2016-06-16 | G7: 182 | H7: 3.286111111 | I7: 0 | P7: 2016-06-16 | Q7: 2019-03-14
E8: =IF(CALC!$B$1="MR26",Q8,P8) -> 2016-12-15 | G8: 182 | H8: 3.286111111 | I8: 0 | P8: 2016-12-15 | Q8: 2019-09-12
D9: VIG | E9: =IF(CALC!$B$1="MR26",Q9,P9) -> 2017-06-15 | F9: 167 | G9: 182 | H9: 3.286111111 | I9: 3.211550056 | P9: 2017-06-15 | Q9: 2020-03-12
E10: =IF(CALC!$B$1="MR26",Q10,P10) -> 2017-12-14 | F10: 349 | G10: 182 | H10: 3.286111111 | I10: 3.132217114 | P10: 2017-12-14 | Q10: 2020-09-10
E11: =IF(CALC!$B$1="MR26",Q11,P11) -> 2018-06-14 | F11: 531 | G11: 182 | H11: 3.286111111 | I11: 3.054843885 | P11: 2018-06-14 | Q11: 2021-03-11
E12: =IF(CALC!$B$1="MR26",Q12,P12) -> 2018-12-13 | F12: 713 | G12: 182 | H12: 3.286111111 | I12: 2.979381959 | P12: 2018-12-13 | Q12: 2021-09-09
E13: =IF(CALC!$B$1="MR26",Q13,P13) -> 2019-06-13 | F13: 895 | G13: 182 | H13: 3.286111111 | I13: 2.905784122 | P13: 2019-06-13 | Q13: 2022-03-10
E14: =IF(CALC!$B$1="MR26",Q14,P14) -> 2019-12-11 | F14: 1076 | G14: 181 | H14: 3.268055556 | I14: 2.818820245 | P14: 2019-12-11 | Q14: 2022-09-08
E15: =IF(CALC!$B$1="MR26",Q15,P15) -> 2020-06-11 | F15: 1259 | G15: 183 | H15: 3.304166667 | I15: 2.779184466 | P15: 2020-06-11 | Q15: 2023-03-09
E16: =IF(CALC!$B$1="MR26",Q16,P16) -> 2020-12-10 | F16: 1441 | G16: 182 | H16: 3.286111111 | I16: 2.695720334 | P16: 2020-12-10 | Q16: 2023-09-07
E17: =IF(CALC!$B$1="MR26",Q17,P17) -> 2021-06-10 | F17: 1623 | G17: 182 | H17: 103.2861111 | I17: 82.63645522 | P17: 2021-06-10 | Q17: 2024-03-07
E18: =IF(CALC!$B$1="MR26",Q18,P18) -> 2021-12-09 | G18: 182 | H18: 3.286111111 | I18: 0 | P18: 2021-12-09 | Q18: 2024-09-05
E19: =IF(CALC!$B$1="MR26",Q19,P19) -> 2022-06-09 | G19: 182 | H19: 3.286111111 | I19: 0 | P19: 2022-06-09 | Q19: 2025-03-06
E20: =IF(CALC!$B$1="MR26",Q20,P20) -> 2022-12-08 | G20: 182 | H20: 3.286111111 | I20: 0 | P20: 2022-12-08 | Q20: 2025-09-04
E21: =IF(CALC!$B$1="MR26",Q21,P21) -> 2023-06-08 | G21: 182 | H21: 3.286111111 | I21: 0 | P21: 2023-06-08 | Q21: 2026-03-05
E22: =IF(CALC!$B$1="MR26",Q22,P22) -> 2023-12-07 | G22: 182 | H22: 3.286111111 | I22: 0 | P22: 2023-12-07
E23: =IF(CALC!$B$1="MR26",Q23,P23) -> 2024-06-06 | G23: 182 | H23: 3.286111111 | I23: 0 | P23: 2024-06-06
E24: =IF(CALC!$B$1="MR26",Q24,P24) -> 2024-12-05 | G24: 182 | H24: 3.286111111 | I24: 0 | P24: 2024-12-05
E25: =IF(CALC!$B$1="MR26",Q25,P25) -> 2025-06-05 | G25: 182 | H25: 3.286111111 | I25: 0 | P25: 2025-06-05
E26: =IF(CALC!$B$1="MR26",Q26,P26) -> 2025-12-04 | G26: 182 | H26: 3.286111111 | I26: 0 | P26: 2025-12-04
E27: =IF(CALC!$B$1="MR26",Q27,P27) -> 2026-06-04 | G27: 182 | H27: 3.286111111 | I27: 0 | P27: 2026-06-04
E28: =IF(CALC!$B$1="MR26",Q28,P28) -> 2026-12-03 | G28: 182 | H28: 3.286111111 | I28: 0 | P28: 2026-12-03
E29: =IF(CALC!$B$1="MR26",Q29,P29) -> 2027-06-03 | G29: 182 | H29: 3.286111111 | I29: 0 | P29: 2027-06-03
E30: =IF(CALC!$B$1="MR26",Q30,P30) -> 2027-12-02 | G30: 182 | H30: 3.286111111 | I30: 0 | P30: 2027-12-02
E31: =IF(CALC!$B$1="MR26",Q31,P31) -> 2028-06-01 | G31: 182 | H31: 3.286111111 | I31: 0 | P31: 2028-06-01
E32: =IF(CALC!$B$1="MR26",Q32,P32) -> 2028-11-30 | G32: 182 | H32: 3.286111111 | I32: 0 | P32: 2028-11-30
E33: =IF(CALC!$B$1="MR26",Q33,P33) -> 2029-05-31 | G33: 182 | H33: 3.286111111 | I33: 0 | P33: 2029-05-31
E34: =IF(CALC!$B$1="MR26",Q34,P34) -> 2029-11-29 | F34: =IF(OR(E34-$B$1<=0,E34>$B$2),"",E34-$B$1) ->  | G34: 182 | H34: 3.286111111 | I34: 0 | P34: 2029-11-29
D35: =IF(F35=MIN($F:$F),"VIG","") ->  | E35: =IF(CALC!$B$1="MR26",Q35,P35) -> 2030-05-30 | G35: 182 | H35: =IF(F35<=0,0,IF(F35=MAX($F:$F),$B$3/36000*G35*100+100,$B$3/36000*G35*100)) -> 3.286111111 | I35: =IF(F35="",0,H35/(1+$B$4*182/36000)^(F35/182)) -> 0 | P35: 2030-05-30
E36: =IF(CALC!$B$1="MR26",Q36,P36) -> 2030-11-28 | G36: 182 | H36: 3.286111111 | I36: 0 | P36: 2030-11-28
E37: =IF(CALC!$B$1="MR26",Q37,P37) -> 2031-05-29 | G37: 182 | H37: 3.286111111 | I37: 0 | P37: 2031-05-29
E38: =IF(CALC!$B$1="MR26",Q38,P38) -> 2031-11-27 | G38: 182 | H38: 3.286111111 | I38: 0 | P38: 2031-11-27
E39: =IF(CALC!$B$1="MR26",Q39,P39) -> 2032-05-27 | G39: 182 | H39: 3.286111111 | I39: 0 | P39: 2032-05-27
E40: =IF(CALC!$B$1="MR26",Q40,P40) -> 2032-11-25 | G40: 182 | H40: 3.286111111 | I40: 0 | P40: 2032-11-25
E41: =IF(CALC!$B$1="MR26",Q41,P41) -> 2033-05-26 | G41: 182 | H41: 3.286111111 | I41: 0 | P41: 2033-05-26
E42: =IF(CALC!$B$1="MR26",Q42,P42) -> 2033-11-24 | G42: 182 | H42: 3.286111111 | I42: 0 | P42: 2033-11-24
E43: =IF(CALC!$B$1="MR26",Q43,P43) -> 2034-05-25 | G43: 182 | H43: 3.286111111 | I43: 0 | P43: 2034-05-25
E44: =IF(CALC!$B$1="MR26",Q44,P44) -> 2034-11-23 | G44: 182 | H44: 3.286111111 | I44: 0 | P44: 2034-11-23
E45: =IF(CALC!$B$1="MR26",Q45,P45) -> 2035-05-24 | G45: 182 | H45: 3.286111111 | I45: 0 | P45: 2035-05-24
E46: =IF(CALC!$B$1="MR26",Q46,P46) -> 2035-11-22 | G46: 182 | H46: 3.286111111 | I46: 0 | P46: 2035-11-22
E47: =IF(CALC!$B$1="MR26",Q47,P47) -> 2036-05-22 | G47: 182 | H47: 3.286111111 | I47: 0 | P47: 2036-05-22
E48: =IF(CALC!$B$1="MR26",Q48,P48) -> 2036-11-20 | G48: 182 | H48: 3.286111111 | I48: 0 | P48: 2036-11-20
E49: =IF(CALC!$B$1="MR26",Q49,P49) -> 2037-05-21 | G49: 182 | H49: 3.286111111 | I49: 0 | P49: 2037-05-21
E50: =IF(CALC!$B$1="MR26",Q50,P50) -> 2037-11-19 | G50: 182 | H50: 3.286111111 | I50: 0 | P50: 2037-11-19
E51: =IF(CALC!$B$1="MR26",Q51,P51) -> 2038-05-20 | G51: 182 | H51: 3.286111111 | I51: 0 | P51: 2038-05-20
E52: =IF(CALC!$B$1="MR26",Q52,P52) -> 2038-11-18 | G52: 182 | H52: 3.286111111 | I52: 0 | P52: 2038-11-18
E53: =IF(CALC!$B$1="MR26",Q53,P53) -> 2039-05-19 | G53: 182 | H53: 3.286111111 | I53: 0 | P53: 2039-05-19
E54: =IF(CALC!$B$1="MR26",Q54,P54) -> 2039-11-17 | G54: 182 | H54: 3.286111111 | I54: 0 | P54: 2039-11-17
E55: =IF(CALC!$B$1="MR26",Q55,P55) -> 2040-05-17 | G55: 182 | H55: 3.286111111 | I55: 0 | P55: 2040-05-17
E56: =IF(CALC!$B$1="MR26",Q56,P56) -> 2040-11-15 | G56: 182 | H56: 3.286111111 | I56: 0 | P56: 2040-11-15
E57: =IF(CALC!$B$1="MR26",Q57,P57) -> 2041-05-16 | G57: 182 | H57: 3.286111111 | I57: 0 | P57: 2041-05-16
E58: =IF(CALC!$B$1="MR26",Q58,P58) -> 2041-11-14 | G58: 182 | H58: 3.286111111 | I58: 0 | P58: 2041-11-14
E59: =IF(CALC!$B$1="MR26",Q59,P59) -> 2042-05-15 | G59: 182 | H59: 3.286111111 | I59: 0 | P59: 2042-05-15
E60: =IF(CALC!$B$1="MR26",Q60,P60) -> 2042-11-13 | G60: 182 | H60: 3.286111111 | I60: 0 | P60: 2042-11-13

Sheet Información
A1: 1 | B1: 4.82 | E1: Contrato | F1: Vencimiento | G1: Cupón | H1: Contrato | I1: Vencimiento | J1: # Cupones
A2: 2 | B2: 4.825331 | E2: DC18 | F2: 2018-12-13 | G2: 8.5 | H2: DC16 | I2: 2016-12-30 | J2: 1
A3: 3 | B3: 4.831058 | E3: JN21 | F3: 2021-06-10 | G3: 6.5 | H3: MR17 | I3: 2017-03-31 | J3: 1
A4: 4 | B4: 4.836786 | E4: DC24 | F4: 2024-12-05 | G4: 10 | H4: JN17 | I4: 2017-06-30 | J4: 2
A5: 5 | B5: 4.842116 | E5: MR26 | F5: 2026-03-05 | G5: 5.75 | H5: SP17 | I5: 2017-09-29 | J5: 2
A6: 6 | B6: 4.846653 | E6: MY31 | F6: 2031-05-29 | G6: 7.75
A7: 7 | B7: 4.85 | E7: NV42 | F7: 2042-11-13 | G7: 7.75
A8: 8 | B8: 4.852303
A9: 9 | B9: 4.854072
A10: 10 | B10: 4.855452
A11: 11 | B11: 4.856589
A12: 12 | B12: 4.857629
A13: 13 | B13: 4.858717
A14: 14 | B14: 4.86
A15: 15 | B15: 4.860845
A16: 16 | B16: 4.860914
A17: 17 | B17: 4.860787
A18: 18 | B18: 4.86105
A19: 19 | B19: 4.862284
A20: 20 | B20: 4.865073
A21: 21 | B21: 4.87
A22: 22 | B22: 4.87734
A23: 23 | B23: 4.886441
A24: 24 | B24: 4.896492
A25: 25 | B25: 4.906683
A26: 26 | B26: 4.916205
A27: 27 | B27: 4.924247
A28: 28 | B28: 4.93
A29: 29 | B29: 4.934282
A30: 30 | B30: 4.938453
A31: 31 | B31: 4.942515
A32: 32 | B32: 4.94647
A33: 33 | B33: 4.95032
A34: 34 | B34: 4.954068
A35: 35 | B35: 4.957716
A36: 36 | B36: 4.961265
A37: 37 | B37: 4.964719
A38: 38 | B38: 4.968079
A39: 39 | B39: 4.971347
A40: 40 | B40: 4.974527
A41: 41 | B41: 4.977619
A42: 42 | B42: 4.980626
A43: 43 | B43: 4.983551
A44: 44 | B44: 4.986395
A45: 45 | B45: 4.989162
A46: 46 | B46: 4.991852
A47: 47 | B47: 4.994468
A48: 48 | B48: 4.997013
A49: 49 | B49: 4.999488
A50: 50 | B50: 5.001896
A51: 51 | B51: 5.004239
A52: 52 | B52: 5.00652
A53: 53 | B53: 5.00874
A54: 54 | B54: 5.010901
A55: 55 | B55: 5.013007
A56: 56 | B56: 5.015058
A57: 57 | B57: 5.017057
A58: 58 | B58: 5.019008
A59: 59 | B59: 5.02091
A60: 60 | B60: 5.022768
A61: 61 | B61: 5.024583
A62: 62 | B62: 5.026356
A63: 63 | B63: 5.028092
A64: 64 | B64: 5.029791
A65: 65 | B65: 5.031456
A66: 66 | B66: 5.033089
A67: 67 | B67: 5.034693
A68: 68 | B68: 5.036268
A69: 69 | B69: 5.037819
A70: 70 | B70: 5.039347
A71: 71 | B71: 5.040853
A72: 72 | B72: 5.042341
A73: 73 | B73: 5.043813
A74: 74 | B74: 5.04527
A75: 75 | B75: 5.046715
A76: 76 | B76: 5.048151
A77: 77 | B77: 5.049579
A78: 78 | B78: 5.051001
A79: 79 | B79: 5.05242
A80: 80 | B80: 5.053838
A81: 81 | B81: 5.055257
A82: 82 | B82: 5.05668
A83: 83 | B83: 5.058108
A84: 84 | B84: 5.059544
A85: 85 | B85: 5.06099
A86: 86 | B86: 5.062449
A87: 87 | B87: 5.063921
A88: 88 | B88: 5.06541
A89: 89 | B89: 5.066919
A90: 90 | B90: 5.068448
A91: 91 | B91: 5.07
A92: 92 | B92: 5.071555
A93: 93 | B93: 5.073089
A94: 94 | B94: 5.074604
A95: 95 | B95: 5.0761
A96: 96 | B96: 5.077578
A97: 97 | B97: 5.079037
A98: 98 | B98: 5.080478
A99: 99 | B99: 5.081902
A100: 100 | B100: 5.08331
A101: 101 | B101: 5.0847
A102: 102 | B102: 5.086075
A103: 103 | B103: 5.087434
A104: 104 | B104: 5.088778
A105: 105 | B105: 5.090108
A106: 106 | B106: 5.091423
A107: 107 | B107: 5.092724
A108: 108 | B108: 5.094012
A109: 109 | B109: 5.095287
A110: 110 | B110: 5.096549
A111: 111 | B111: 5.0978
A112: 112 | B112: 5.099038
A113: 113 | B113: 5.100266
A114: 114 | B114: 5.101483
A115: 115 | B115: 5.102689
A116: 116 | B116: 5.103886
A117: 117 | B117: 5.105073
A118: 118 | B118: 5.106251
A119: 119 | B119: 5.107421
A120: 120 | B120: 5.108582
A121: 121 | B121: 5.109736
A122: 122 | B122: 5.110883
A123: 123 | B123: 5.112023
A124: 124 | B124: 5.113156
A125: 125 | B125: 5.114284
A126: 126 | B126: 5.115406
A127: 127 | B127: 5.116523
A128: 128 | B128: 5.117635
A129: 129 | B129: 5.118743
A130: 130 | B130: 5.119848
A131: 131 | B131: 5.120949
A132: 132 | B132: 5.122047
A133: 133 | B133: 5.123143
A134: 134 | B134: 5.124237
A135: 135 | B135: 5.125329
A136: 136 | B136: 5.126421
A137: 137 | B137: 5.127511
A138: 138 | B138: 5.128601
A139: 139 | B139: 5.129692
A140: 140 | B140: 5.130783
A141: 141 | B141: 5.131876
A142: 142 | B142: 5.132969
A143: 143 | B143: 5.134065
A144: 144 | B144: 5.135163
A145: 145 | B145: 5.136265
A146: 146 | B146: 5.137369
A147: 147 | B147: 5.138477
A148: 148 | B148: 5.139589
A149: 149 | B149: 5.140706
A150: 150 | B150: 5.141828
A151: 151 | B151: 5.142955
A152: 152 | B152: 5.144088
A153: 153 | B153: 5.145228
A154: 154 | B154: 5.146374
A155: 155 | B155: 5.147528
A156: 156 | B156: 5.148689
A157: 157 | B157: 5.149859
A158: 158 | B158: 5.151037
A159: 159 | B159: 5.152224
A160: 160 | B160: 5.15342
A161: 161 | B161: 5.154626
A162: 162 | B162: 5.155843
A163: 163 | B163: 5.15707
A164: 164 | B164: 5.158308
A165: 165 | B165: 5.159558
A166: 166 | B166: 5.16082
A167: 167 | B167: 5.162095
A168: 168 | B168: 5.163382
A169: 169 | B169: 5.164683
A170: 170 | B170: 5.165998
A171: 171 | B171: 5.167327
A172: 172 | B172: 5.16867
A173: 173 | B173: 5.170029
A174: 174 | B174: 5.171403
A175: 175 | B175: 5.172793
A176: 176 | B176: 5.1742
A177: 177 | B177: 5.175624
A178: 178 | B178: 5.177065
A179: 179 | B179: 5.178523
A180: 180 | B180: 5.18
A181: 181 | B181: 5.181487
A182: 182 | B182: 5.182978
A183: 183 | B183: 5.184471
A184: 184 | B184: 5.185966
A185: 185 | B185: 5.187465
A186: 186 | B186: 5.188966
A187: 187 | B187: 5.190469
A188: 188 | B188: 5.191975
A189: 189 | B189: 5.193484
A190: 190 | B190: 5.194996
A191: 191 | B191: 5.19651
A192: 192 | B192: 5.198026
A193: 193 | B193: 5.199545
A194: 194 | B194: 5.201067
A195: 195 | B195: 5.20259
A196: 196 | B196: 5.204117
A197: 197 | B197: 5.205646
A198: 198 | B198: 5.207177
A199: 199 | B199: 5.20871
A200: 200 | B200: 5.210246
... 1800 more rows

Sheet FUTUROS ESPECIFICOS
A1: Contrato | B1: YCash Bid | C1: YFut Bid | D1: Bid | E1: Ask | F1: Y F Ask | G1: YCash Ask | H1: Last | I1: Tasa Fut | J1: Tasa Cash | L1: BID | M1: ASK | N1: LAST | S1: Plazos | T1: DXV | U1: Fondeo
A2: ="DC18 "&Información!$H$2 -> DC18 DC16 | L2: =_xll.rtdValue(L$1,$A2,"EMD","MXN") ->  | M2: =_xll.rtdValue(M$1,$A2,"EMD","MXN") ->  | N2: =_xll.rtdValue(N$1,$A2,"EMD","MXN") ->  | P2: Fecha Valuación | S2: =+Información!H2 -> DC16 | T2: =VLOOKUP(S2,CTOS_FUT,2,0)-'FUTUROS ESPECIFICOS'!$P$4 -> 51 | U2: =VLOOKUP(T2,Información!$A:$B,2,0) -> 5.004239
U3: 3.22
A4: ="DC18 "&Información!$H$3 -> DC18 MR17 | L4: =_xll.rtdValue(L$1,$A4,"EMD","MXN") ->  | M4: =_xll.rtdValue(M$1,$A4,"EMD","MXN") ->  | N4: =_xll.rtdValue(N$1,$A4,"EMD","MXN") ->  | P4: =WORKDAY(TODAY(),2,calendario!$A$1:$A$339) -> 2016-11-09 | S4: =+Información!H3 -> MR17 | T4: =VLOOKUP(S4,CTOS_FUT,2,0)-'FUTUROS ESPECIFICOS'!$P$4 -> 142 | U4: =VLOOKUP(T4,Información!$A:$B,2,0) -> 5.132969
U5: 3.34588072
A6: ="DC18 "&Información!$H$4 -> DC18 JN17 | L6: =_xll.rtdValue(L$1,$A6,"EMD","MXN") ->  | M6: =_xll.rtdValue(M$1,$A6,"EMD","MXN") ->  | N6: =_xll.rtdValue(N$1,$A6,"EMD","MXN") ->  | S6: =+Información!H4 -> JN17 | T6: =VLOOKUP(S6,CTOS_FUT,2,0)-'FUTUROS ESPECIFICOS'!$P$4 -> 233 | U6: =VLOOKUP(T6,Información!$A:$B,2,0) -> 5.26209
U7: 3.59151833
A8: ="DC18 "&Información!$H$5 -> DC18 SP17 | L8: =_xll.rtdValue(L$1,$A8,"EMD","MXN") ->  | M8: =_xll.rtdValue(M$1,$A8,"EMD","MXN") ->  | N8: =_xll.rtdValue(N$1,$A8,"EMD","MXN") ->  | S8: =+Información!H5 -> SP17 | T8: =VLOOKUP(S8,CTOS_FUT,2,0)-'FUTUROS ESPECIFICOS'!$P$4 -> 324 | U8: =VLOOKUP(T8,Información!$A:$B,2,0) -> 5.41128
U9: 3.60036767
A12: ="JN21 "&Información!$H$2 -> JN21 DC16 | L12: =_xll.rtdValue(L$1,$A12,"EMD","MXN") ->  | M12: =_xll.rtdValue(M$1,$A12,"EMD","MXN") ->  | N12: =_xll.rtdValue(N$1,$A12,"EMD","MXN") -> 
A14: ="JN21 "&Información!$H$3 -> JN21 MR17 | L14: =_xll.rtdValue(L$1,$A14,"EMD","MXN") ->  | M14: =_xll.rtdValue(M$1,$A14,"EMD","MXN") ->  | N14: =_xll.rtdValue(N$1,$A14,"EMD","MXN") -> 
A16: ="JN21 "&Información!$H$4 -> JN21 JN17 | L16: =_xll.rtdValue(L$1,$A16,"EMD","MXN") ->  | M16: =_xll.rtdValue(M$1,$A16,"EMD","MXN") ->  | N16: =_xll.rtdValue(N$1,$A16,"EMD","MXN") -> 
A18: ="JN21 "&Información!$H$5 -> JN21 SP17 | L18: =_xll.rtdValue(L$1,$A18,"EMD","MXN") ->  | M18: =_xll.rtdValue(M$1,$A18,"EMD","MXN") ->  | N18: =_xll.rtdValue(N$1,$A18,"EMD","MXN") -> 
A22: ="DC24 "&Información!$H$2 -> DC24 DC16 | L22: =_xll.rtdValue(L$1,$A22,"EMD","MXN") ->  | M22: =_xll.rtdValue(M$1,$A22,"EMD","MXN") ->  | N22: =_xll.rtdValue(N$1,$A22,"EMD","MXN") -> 
A24: ="DC24 "&Información!$H$3 -> DC24 MR17 | L24: =_xll.rtdValue(L$1,$A24,"EMD","MXN") ->  | M24: =_xll.rtdValue(M$1,$A24,"EMD","MXN") ->  | N24: =_xll.rtdValue(N$1,$A24,"EMD","MXN") -> 
A26: ="DC24 "&Información!$H$4 -> DC24 JN17 | L26: =_xll.rtdValue(L$1,$A26,"EMD","MXN") ->  | M26: =_xll.rtdValue(M$1,$A26,"EMD","MXN") ->  | N26: =_xll.rtdValue(N$1,$A26,"EMD","MXN") -> 
A28: ="DC24 "&Información!$H$5 -> DC24 SP17 | L28: =_xll.rtdValue(L$1,$A28,"EMD","MXN") ->  | M28: =_xll.rtdValue(M$1,$A28,"EMD","MXN") ->  | N28: =_xll.rtdValue(N$1,$A28,"EMD","MXN") -> 
A32: ="MR26 "&Información!$H$2 -> MR26 DC16 | L32: =_xll.rtdValue(L$1,$A32,"EMD","MXN") ->  | M32: =_xll.rtdValue(M$1,$A32,"EMD","MXN") ->  | N32: =_xll.rtdValue(N$1,$A32,"EMD","MXN") -> 
A34: ="MR26 "&Información!$H$3 -> MR26 MR17 | L34: =_xll.rtdValue(L$1,$A34,"EMD","MXN") ->  | M34: =_xll.rtdValue(M$1,$A34,"EMD","MXN") ->  | N34: =_xll.rtdValue(N$1,$A34,"EMD","MXN") -> 
A36: ="MR26 "&Información!$H$4 -> MR26 JN17 | L36: =_xll.rtdValue(L$1,$A36,"EMD","MXN") ->  | M36: =_xll.rtdValue(M$1,$A36,"EMD","MXN") ->  | N36: =_xll.rtdValue(N$1,$A36,"EMD","MXN") -> 
A38: ="MR26 "&Información!$H$5 -> MR26 SP17 | L38: =_xll.rtdValue(L$1,$A38,"EMD","MXN") ->  | M38: =_xll.rtdValue(M$1,$A38,"EMD","MXN") ->  | N38: =_xll.rtdValue(N$1,$A38,"EMD","MXN") -> 
A42: MY31 DC16 | L42: =_xll.rtdValue(L$1,$A42,"EMD","MXN") ->  | M42: =_xll.rtdValue(M$1,$A42,"EMD","MXN") ->  | N42: =_xll.rtdValue(N$1,$A42,"EMD","MXN") -> 
A44: MY31 MR17 | L44: =_xll.rtdValue(L$1,$A44,"EMD","MXN") ->  | M44: =_xll.rtdValue(M$1,$A44,"EMD","MXN") ->  | N44: =_xll.rtdValue(N$1,$A44,"EMD","MXN") -> 
A46: MY31 JN17 | L46: =_xll.rtdValue(L$1,$A46,"EMD","MXN") ->  | M46: =_xll.rtdValue(M$1,$A46,"EMD","MXN") ->  | N46: =_xll.rtdValue(N$1,$A46,"EMD","MXN") -> 
A48: MY31 SP17 | L48: =_xll.rtdValue(L$1,$A48,"EMD","MXN") ->  | M48: =_xll.rtdValue(M$1,$A48,"EMD","MXN") ->  | N48: =_xll.rtdValue(N$1,$A48,"EMD","MXN") -> 
A52: ="NV42 "&Información!$H$2 -> NV42 DC16 | L52: =_xll.rtdValue(L$1,$A52,"EMD","MXN") ->  | M52: =_xll.rtdValue(M$1,$A52,"EMD","MXN") ->  | N52: =_xll.rtdValue(N$1,$A52,"EMD","MXN") -> 
A54: ="NV42 "&Información!$H$3 -> NV42 MR17 | L54: =_xll.rtdValue(L$1,$A54,"EMD","MXN") ->  | M54: =_xll.rtdValue(M$1,$A54,"EMD","MXN") ->  | N54: =_xll.rtdValue(N$1,$A54,"EMD","MXN") -> 
A56: ="NV42 "&Información!$H$4 -> NV42 JN17 | L56: =_xll.rtdValue(L$1,$A56,"EMD","MXN") ->  | M56: =_xll.rtdValue(M$1,$A56,"EMD","MXN") ->  | N56: =_xll.rtdValue(N$1,$A56,"EMD","MXN") -> 
A58: ="NV42 "&Información!$H$5 -> NV42 SP17 | L58: =_xll.rtdValue(L$1,$A58,"EMD","MXN") ->  | M58: =_xll.rtdValue(M$1,$A58,"EMD","MXN") ->  | N58: =_xll.rtdValue(N$1,$A58,"EMD","MXN") -> 

Sheet calendario (hidden)
A1: 2015-01-01
A2: 2015-02-02
A3: 2015-03-16
A4: 2015-04-02
A5: 2015-04-03
A6: 2015-05-01
A7: 2015-09-16
A8: 2015-11-02
A9: 2015-11-16
A10: 2015-12-25
A11: 2016-01-01
A12: 2016-02-01
A13: 2016-03-21
A14: 2016-03-24
A15: 2016-03-25
A16: 2016-09-16
A17: 2016-11-02
A18: 2016-11-21
A19: 2016-12-12
A20: 2017-02-06
A21: 2017-03-20
A22: 2017-04-13
A23: 2017-04-14
A24: 2017-05-01
A25: 2017-11-02
A26: 2017-11-20
A27: 2017-12-12
A28: 2017-12-25
A29: 2018-01-01
A30: 2018-02-05
A31: 2018-03-19
A32: 2018-03-29
A33: 2018-03-30
A34: 2018-05-01
A35: 2018-11-02
A36: 2018-11-19
A37: 2018-12-12
A38: 2018-12-25
A39: 2019-01-01
A40: 2019-02-04
A41: 2019-03-18
A42: 2019-04-18
A43: 2019-04-19
A44: 2019-05-01
A45: 2019-09-16
A46: 2019-11-18
A47: 2019-12-12
A48: 2019-12-25
A49: 2020-01-01
A50: 2020-02-03
A51: 2020-03-16
A52: 2020-04-09
A53: 2020-04-10
A54: 2020-05-01
A55: 2020-09-16
A56: 2020-11-02
A57: 2020-11-16
A58: 2020-12-25
A59: 2021-01-01
A60: 2021-02-01
A61: 2021-03-15
A62: 2021-04-01
A63: 2021-04-02
A64: 2021-09-16
A65: 2021-11-02
A66: 2021-11-15
A67: 2022-02-07
A68: 2022-03-21
A69: 2022-04-14
A70: 2022-04-15
A71: 2022-09-16
A72: 2022-11-02
A73: 2022-11-21
A74: 2022-12-12
A75: 2023-02-06
A76: 2023-03-20
A77: 2023-04-06
A78: 2023-04-07
A79: 2023-05-01
A80: 2023-11-02
A81: 2023-11-20
A82: 2023-12-12
A83: 2023-12-25
A84: 2024-01-01
A85: 2024-02-05
A86: 2024-03-18
A87: 2024-03-28
A88: 2024-03-29
A89: 2024-05-01
A90: 2024-09-16
A91: 2024-11-18
A92: 2024-12-12
A93: 2024-12-25
A94: 2025-01-01
A95: 2025-02-03
A96: 2025-03-17
A97: 2025-04-17
A98: 2025-04-18
A99: 2025-05-01
A100: 2025-09-16
A101: 2025-11-17
A102: 2025-12-12
A103: 2025-12-25
A104: 2026-01-01
A105: 2026-02-02
A106: 2026-03-16
A107: 2026-04-02
A108: 2026-04-03
A109: 2026-05-01
A110: 2026-09-16
A111: 2026-11-02
A112: 2026-11-16
A113: 2026-12-25
A114: 2027-01-01
A115: 2027-02-01
A116: 2027-03-15
A117: 2027-03-25
A118: 2027-03-26
A119: 2027-09-16
A120: 2027-11-02
A121: 2027-11-15
A122: 2028-02-07
A123: 2028-03-20
A124: 2028-04-13
A125: 2028-04-14
A126: 2028-05-01
A127: 2028-11-02
A128: 2028-11-20
A129: 2028-12-12
A130: 2028-12-25
A131: 2029-01-01
A132: 2029-02-05
A133: 2029-03-19
A134: 2029-03-29
A135: 2029-03-30
A136: 2029-05-01
A137: 2029-11-02
A138: 2029-11-19
A139: 2029-12-12
A140: 2029-12-25
A141: 2030-01-01
A142: 2030-02-04
A143: 2030-03-18
A144: 2030-04-18
A145: 2030-04-19
A146: 2030-05-01
A147: 2030-09-16
A148: 2030-11-18
A149: 2030-12-12
A150: 2030-12-25
A151: 2031-01-01
A152: 2031-02-03
A153: 2031-03-17
A154: 2031-04-10
A155: 2031-04-11
A156: 2031-05-01
A157: 2031-09-16
A158: 2031-11-17
A159: 2031-12-12
A160: 2031-12-25
A161: 2032-01-01
A162: 2032-02-02
A163: 2032-03-15
A164: 2032-03-25
A165: 2032-03-26
A166: 2032-09-16
A167: 2032-11-02
A168: 2032-11-15
A169: 2033-02-07
A170: 2033-03-21
A171: 2033-04-14
A172: 2033-04-15
A173: 2033-09-16
A174: 2033-11-02
A175: 2033-11-21
A176: 2033-12-12
A177: 2034-02-06
A178: 2034-03-20
A179: 2034-04-06
A180: 2034-04-07
A181: 2034-05-01
A182: 2034-11-02
A183: 2034-11-20
A184: 2034-12-12
A185: 2034-12-25
A186: 2035-01-01
A187: 2035-02-05
A188: 2035-03-19
A189: 2035-03-22
A190: 2035-03-23
A191: 2035-05-01
A192: 2035-11-02
A193: 2035-11-19
A194: 2035-12-12
A195: 2035-12-25
A196: 2036-01-01
A197: 2036-02-04
A198: 2036-03-17
A199: 2036-04-10
A200: 2036-04-11
... 139 more rows
